bitfinex/quotes_ETHUSD_20260114
["timestamp","ask_amount","ask_price","bid_price","bid_amount"]
[1768349559548,2.3734381,3329.3,3328.5,3.98645232]
[1768349559715,2.3734381,3329.3,3328.5,0.9821303]
[1768349560042,2.3734381,3329.3,3328.5,3.986478]
[1768349560929,3.00312297,3329.9,3328.5,3.986478]
[1768349560930,2.4214381,3329.8,3328.6,2.72573263]
[1768349561118,2.4214381,3329.8,3328.7,0.402]
[1768349561518,2.4214381,3329.8,3328.7,2.726601]
[1768349562144,2.4214381,3329.8,3328.9,2.324601]
[1768349562347,2.4214381,3330.1,3329.0,2.85746966]
[1768349562645,2.4214381,3330.1,3329.1,2.72319948]
[1768349563144,0.002,3330.4,3329.1,2.72319948]
[1768349563145,2.4234381,3330.4,3329.1,2.72319948]
[1768349564141,2.4234381,3330.4,3329.3,2.31780215]
[1768349564643,0.002,3330.4,3329.3,2.31780215]
[1768349564830,0.002,3330.4,3329.5,2.31446258]
[1768349565030,2.4234381,3330.9,3329.9,2.31446258]
[1768349565233,2.4234381,3330.9,3330.0,0.402]
[1768349565628,0.002,3330.9,3330.0,2.71307846]
[1768349566148,0.002,3330.9,3330.0,5.71603345]
[1768349566149,2.4234381,3330.9,3330.0,5.71603345]
[1768349566353,2.4234381,3330.9,3330.1,0.97360335]
[1768349567323,2.4234381,3330.9,3330.1,3.28137687]
[1768349567324,0.002,3330.6,3330.1,3.28137687]
[1768349568426,0.002,3330.6,3330.1,3.40486224]
[1768349568825,0.002,3330.6,3330.1,0.402]
[1768349569230,0.002,3330.6,3330.1,3.00287365]
[1768349569555,0.002,3330.6,3330.2,0.402]
[1768349570762,2.4234381,3330.6,3330.3,0.402]
[1768349572763,2.4234381,3330.6,3329.8,6.00635437]
[1768349572940,2.4234381,3330.6,3329.9,1.23172721]
[1768349573549,2.4234381,3330.6,3330.0,0.402]
[1768349573550,2.4214381,3330.5,3330.0,0.402]
[1768349573847,0.002,3330.6,3330.0,2.68624138]
[1768349574252,0.002,3330.9,3330.0,0.402]
[1768349574432,2.4214381,3331.1,3330.1,2.28424138]
[1768349574633,2.4214381,3331.0,3330.2,0.26862414]
[1768349574840,2.4214381,3330.9,3330.0,3.4049438]
[1768349575039,2.4214381,3330.9,3330.0,0.402]
[1768349575263,2.4214381,3330.9,3330.1,0.402]
[1768349575764,2.4214381,3330.9,3330.0,3.0029991]
[1768349576067,2.4214381,3330.9,3330.1,0.402]
[1768349576267,2.4214381,3330.9,3330.2,0.56826206]
[1768349576937,5.42363335,3330.9,3330.2,0.56826206]
[1768349577739,2.4214381,3330.8,3330.2,0.56826206]
[1768349578464,2.4214381,3330.8,3328.8,2.26771981]
[1768349578679,6.0043905,3330.9,3328.7,2.57237114]
[1768349578680,2.4214381,3330.3,3328.7,2.57237114]
[1768349578901,2.39531264,3330.2,3329.2,2.57137114]
[1768349579041,2.4214381,3330.6,3329.2,2.57137114]
[1768349579247,2.4214381,3330.4,3329.1,5.30652287]
[1768349579473,2.4214381,3330.3,3329.2,0.93265229]
[1768349580045,2.4214381,3330.3,3329.2,0.53065229]
[1768349580444,2.4214381,3330.3,3329.3,0.402]
[1768349580867,2.4214381,3330.1,3329.3,0.402]
[1768349581182,3.00282265,3330.2,3329.3,0.402]
[1768349581366,3.00282265,3330.2,3328.8,5.31011326]
[1768349581367,2.4214381,3330.1,3328.8,5.31011326]
[1768349581572,2.4214381,3330.1,3328.9,0.93311133]
[1768349581972,2.4214381,3330.1,3328.9,0.53111133]
[1768349582165,2.8194381,3330.1,3329.0,0.402]
[1768349582495,0.002,3330.6,3329.4,2.57137114]
[1768349582663,0.002,3330.6,3329.6,2.57137114]
[1768349582849,3.00447245,3330.6,3329.7,3.00327356]
[1768349583683,3.00447245,3330.6,3329.6,5.57471995]
[1768349583985,5.42591055,3330.6,3329.7,0.597672]
[1768349584355,5.42591055,3330.6,3329.5,2.97337114]
[1768349584695,2.4234381,3330.6,3329.6,6.00668916]
[1768349584856,2.4214381,3330.4,3329.1,2.57137114]
[1768349585059,2.4214381,3330.4,3329.2,0.402]
[1768349586498,2.4214381,3330.4,3329.2,2.90946531]
[1768349586879,3.00273248,3330.3,3329.3,3.29458092]
[1768349587378,5.61642421,3330.3,3329.3,3.29458092]
[1768349587777,2.61369173,3330.2,3329.3,0.29094653]
[1768349588986,2.61369173,3330.2,3329.4,3.00354418]
[1768349589204,3.00256634,3330.5,3329.5,0.32944907]
[1768349589205,2.61369173,3330.5,3329.5,0.32944907]
[1768349589389,0.398,3330.4,3329.5,0.32944907]
[1768349589685,3.01169173,3330.4,3329.5,0.32944907]
[1768349590885,3.01169173,3330.4,3329.3,0.69294653]
[1768349591182,3.01169173,3330.4,3329.3,3.6965715]
[1768349591183,2.61369173,3330.2,3329.3,3.6965715]
[1768349591788,6.01437442,3330.4,3329.3,9.2076712]
[1768349592289,2.61569173,3330.3,3329.6,0.001]
[1768349592662,0.002,3330.3,3329.6,0.001]
[1768349592857,0.002,3330.3,3329.6,2.50846531]
[1768349593063,0.002,3330.3,3329.9,2.50746531]
[1768349593991,0.002,3330.6,3329.9,2.50746531]
[1768349594891,0.002,3330.6,3329.9,5.51051419]
[1768349595758,0.002,3330.6,3330.0,2.50746531]
[1768349596812,2.61369173,3330.8,3329.9,6.00614206]
[1768349596970,2.54233728,3330.7,3330.0,0.64081421]
[1768349597696,2.54233728,3330.7,3329.8,3.40515111]
[1768349598401,3.00228621,3330.8,3329.8,5.89806734]
[1768349598795,3.00228621,3330.8,3329.8,3.00317822]
[1768349598796,2.94033728,3330.7,3329.8,3.00317822]
[1768349599705,5.54479929,3330.6,3329.6,0.001]
[1768349599904,2.54233728,3330.6,3329.7,0.60079079]
[1768349600121,0.398,3330.7,3329.7,3.09370702]
[1768349600331,0.002,3330.9,3329.7,3.09370702]
[1768349601706,0.002,3330.9,3329.8,6.00636674]
[1768349601922,0.002,3330.9,3329.9,2.49291623]
[1768349602076,0.002,3330.9,3330.0,3.74484453]
[1768349602413,0.002,3330.9,3330.0,1.2519283]
[1768349602572,2.54433728,3330.9,3330.0,0.8499283]
[1768349603604,2.54233728,3330.8,3330.0,3.85285228]
[1768349604513,0.002,3330.6,3330.0,3.85285228]
[1768349604716,0.002,3330.6,3329.8,3.4061715]
[1768349604717,2.54433728,3330.6,3329.8,0.403]
[1768349605024,2.54433728,3330.6,3329.8,0.001]
[1768349605725,2.54233728,3330.4,3329.8,0.001]
[1768349606444,2.54233728,3330.4,3329.6,0.001]
[1768349606579,12.01020864,3330.5,3328.5,3.00431152]
[1768349606580,2.54233728,3330.2,3328.7,3.00511628]
[1768349606940,2.54233728,3330.0,3328.7,0.001]
[1768349607686,2.54233728,3329.8,3328.7,0.001]
[1768349607930,2.54233728,3329.6,3328.7,0.001]
[1768349608136,2.54233728,3329.4,3328.7,0.001]
[1768349608342,2.94133728,3329.4,3328.7,0.001]
[1768349608928,2.54233728,3329.2,3328.7,0.001]
[1768349609278,2.83647101,3329.2,3328.7,0.001]
[1768349609484,0.399,3329.3,3328.7,0.001]
[1768349610791,3.40263714,3329.3,3328.7,0.001]
[1768349611683,2.54233728,3329.2,3328.7,0.001]
[1768349611885,5.54615212,3329.1,3328.7,0.001]
[1768349612623,2.54233728,3329.0,3328.7,0.001]
[1768349612846,2.54233728,3328.8,3327.4,0.402]
[1768349612997,2.54233728,3328.6,3327.4,0.402]
[1768349613321,0.399,3328.7,3327.4,2.89491623]
[1768349613916,0.399,3328.7,3327.6,2.49291623]
[1768349614231,0.399,3328.7,3327.8,2.49291623]
[1768349614437,3.40322062,3328.7,3327.7,0.85034346]
[1768349614656,3.00416947,3328.8,3327.5,8.50343463]
[1768349614948,2.94133728,3328.7,3327.5,6.0105184]
[1768349615246,2.94133728,3328.7,3327.5,3.0052592]
[1768349615823,2.94133728,3328.7,3327.5,6.0105184]
[1768349616122,2.94133728,3328.7,3327.8,0.001]
[1768349616436,5.94560154,3328.7,3327.8,0.001]
[1768349616607,8.9498658,3328.7,3327.8,0.001]
[1768349616804,2.62602369,3328.6,3327.8,0.001]
[1768349618042,2.62602369,3328.4,3327.8,0.001]
[1768349619718,0.89498658,3328.7,3327.8,0.001]
[1768349619924,2.62602369,3329.8,3327.8,2.49870728]
[1768349620218,2.62602369,3329.6,3328.0,2.49770728]
[1768349620527,2.62602369,3329.4,3328.0,2.49770728]
[1768349620838,2.62602369,3329.3,3328.0,2.49770728]
[1768349621414,2.62602369,3329.3,3327.9,6.00979596]
[1768349621624,2.62602369,3329.1,3327.9,3.00489798]
[1768349621834,3.0625725,3329.0,3327.8,3.00593458]
[1768349622038,2.62602369,3328.6,3327.8,0.89208098]
[1768349622247,2.62602369,3328.6,3327.8,3.00595821]
[1768349622447,3.0041283,3328.8,3327.8,3.00595821]
[1768349623154,3.00414743,3328.8,3327.8,3.00595821]
[1768349623358,5.93630443,3328.9,3327.8,0.001]
[1768349623529,5.93630443,3328.9,3327.8,3.3065036]
[1768349624750,8.94032792,3328.9,3327.8,3.3065036]
[1768349625829,0.30625725,3328.9,3327.8,8.80919916]
[1768349626141,3.44048465,3329.0,3327.8,8.80919916]
[1768349626340,6.44442049,3329.0,3327.8,8.80919916]
[1768349627232,6.44442049,3329.0,3327.8,5.80421088]
[1768349627639,6.44442049,3329.0,3327.9,2.49770728]
[1768349628239,9.07044418,3329.0,3327.8,0.30159905]
[1768349628450,0.90704442,3328.9,3327.8,0.30159905]
[1768349629157,3.0041758,3328.7,3327.8,0.30159905]
[1768349629355,3.0041758,3328.7,3327.8,2.79930633]
[1768349629738,3.0041758,3328.7,3327.8,5.80425412]
[1768349629939,3.00411894,3328.8,3327.8,5.80425412]
[1768349630139,3.00411894,3328.8,3327.9,0.58042541]
[1768349630349,3.91107162,3328.9,3327.9,0.58042541]
[1768349630645,6.0080544,3328.9,3327.9,0.58042541]
[1768349631167,5.63005089,3328.9,3327.9,0.58042541]
[1768349631463,3.0040272,3328.9,3327.9,6.08299964]
[1768349633573,3.0040272,3328.9,3328.0,2.49770728]
[1768349633771,2.62602369,3329.6,3328.0,2.49770728]
[1768349633976,0.399,3329.5,3328.2,2.49770728]
[1768349635679,3.00354418,3329.4,3328.4,2.49770728]
[1768349636342,6.00708836,3329.4,3328.4,2.49770728]
[1768349637108,3.40246273,3329.5,3328.4,2.49770728]
[1768349637330,3.40246273,3329.5,3328.6,2.49770728]
[1768349637476,2.62602369,3329.4,3328.5,0.8506781]
[1768349637675,5.62963686,3329.4,3328.5,3.85499734]
[1768349638271,3.00361317,3329.4,3328.5,3.85499734]
[1768349638478,3.00361317,3329.4,3328.5,6.35270462]
[1768349638680,2.62602369,3329.5,3328.6,0.93571457]
[1768349638919,6.49,3329.7,3328.7,2.49770728]
[1768349640010,6.49,3329.7,3328.8,6.0081711]
[1768349640215,9.11602369,3329.7,3328.8,6.0081711]
[1768349640508,12.11930138,3329.7,3328.7,3.40613689]
[1768349640715,2.62602369,3329.6,3328.7,4.26398238]
[1768349640924,0.002,3329.1,3328.7,4.26398238]
[1768349641125,0.002,3329.1,3328.7,3.86198238]
[1768349641724,0.002,3329.1,3328.8,2.49770728]
[1768349642043,0.002,3329.1,3328.5,3.00428604]
[1768349642235,0.002,3329.1,3328.1,0.403]
[1768349642413,2.62802369,3329.1,3328.1,2.78877801]
[1768349642730,2.62802369,3329.1,3328.1,3.00565873]
[1768349642899,0.03754881,3329.0,3328.1,3.00565873]
[1768349643104,2.6635725,3329.0,3328.1,3.00565873]
[1768349643512,0.002,3329.1,3328.5,3.00432988]
[1768349643715,0.002,3329.1,3328.5,2.49770728]
[1768349644818,0.002,3329.1,3328.5,3.00434251]
[1768349646149,0.002,3329.1,3328.7,2.46581947]
[1768349646313,0.002,3329.4,3328.9,2.46581947]
[1768349646909,0.002,3329.4,3328.6,5.47003716]
[1768349647238,0.002,3329.4,3328.7,0.402]
[1768349648435,0.0395443,3329.4,3328.3,2.46581947]
[1768349648627,2.99505617,3329.4,3328.4,0.402]
[1768349649005,2.99505617,3329.4,3328.4,3.00444445]
[1768349649804,2.99505617,3329.4,3328.4,3.0043977]
[1768349651429,5.65860988,3329.3,3328.2,6.00923358]
[1768349651630,2.65497549,3329.2,3328.2,3.89241177]
[1768349651832,2.65497549,3329.2,3328.2,3.00460646]
[1768349652139,2.65497549,3329.2,3328.2,6.00923358]
[1768349652711,2.65497549,3329.2,3328.8,0.001]
[1768349653242,0.002,3329.1,3328.8,0.001]
[1768349655731,2.65697549,3329.1,3328.8,0.001]
[1768349656432,3.22304144,3329.1,3328.8,0.001]
[1768349656831,2.65697549,3329.1,3328.8,0.001]
[1768349660130,2.45632676,3329.0,3328.8,0.001]
[1768349660450,2.41877795,3329.0,3328.8,0.001]
[1768349662424,2.85532789,3328.9,3327.8,0.001]
[1768349662625,2.41877795,3328.7,3327.8,0.001]
[1768349664342,0.88631432,3328.8,3327.8,0.001]
[1768349664343,2.41877795,3328.5,3327.8,0.001]
[1768349664543,2.41877795,3328.5,3328.1,0.001]
[1768349664723,2.41877795,3328.5,3327.8,0.001]
[1768349664930,2.41877795,3328.3,3327.8,0.001]
[1768349665126,0.2817778,3328.2,3327.8,0.001]
[1768349665349,2.70055575,3328.2,3327.8,0.001]
[1768349665655,2.70055575,3328.2,3327.2,0.001]
[1768349666258,2.41877795,3328.0,3327.2,0.001]
[1768349666456,2.81777795,3328.0,3327.2,0.001]
[1768349666639,2.41877795,3327.8,3327.2,0.001]
[1768349668746,3.30149923,3327.9,3327.2,0.001]
[1768349669257,0.399,3328.0,3327.2,2.5437591]
[1768349669657,3.00475398,3328.1,3327.2,2.5437591]
[1768349669963,0.399,3328.0,3327.2,2.5437591]
[1768349670534,0.399,3328.0,3327.2,5.54921729]
[1768349670737,3.40381844,3328.0,3327.2,2.5437591]
[1768349671042,1.30990047,3328.0,3327.2,5.54926595]
[1768349671358,0.399,3328.0,3327.2,5.54926595]
[1768349671555,0.399,3328.0,3327.3,2.5427591]
[1768349672966,3.40384085,3328.0,3327.2,0.001]
[1768349673167,0.399,3328.0,3327.2,0.001]
[1768349673367,0.399,3328.0,3327.2,3.00644348]
[1768349673661,3.40383481,3328.0,3327.2,0.85648342]
[1768349673848,5.82261276,3328.0,3327.2,0.001]
[1768349674660,2.41877795,3327.9,3327.2,0.001]
[1768349675358,5.42369977,3327.9,3327.2,0.001]
[1768349676067,2.41877795,3327.9,3327.2,0.001]
[1768349676227,5.42368792,3327.9,3327.2,0.001]
[1768349676433,3.4038644,3328.0,3327.2,0.001]
[1768349676634,2.63395966,3327.9,3327.2,0.001]
[1768349677231,2.63395966,3327.9,3327.5,0.001]
[1768349677531,4.33627729,3328.0,3327.5,0.001]
[1768349677736,3.00453685,3328.3,3327.5,2.61949312]
[1768349678076,6.0090737,3328.3,3327.5,2.61949312]
[1768349678463,3.40348938,3328.4,3327.5,2.61949312]
[1768349678646,3.40348938,3328.4,3327.7,2.61849312]
[1768349679858,6.40797876,3328.4,3327.7,2.61849312]
[1768349680261,2.67151637,3328.3,3327.5,0.001]
[1768349680461,2.63395966,3328.3,3327.5,0.001]
[1768349680666,2.67151637,3328.3,3327.5,0.001]
[1768349680974,2.63395966,3328.1,3327.5,0.001]
[1768349681279,2.67151862,3328.1,3327.5,0.001]
[1768349681881,3.00480769,3328.0,3327.5,0.001]
[1768349683146,6.00961538,3328.0,3327.5,0.001]
[1768349683860,2.63395966,3328.0,3327.5,0.001]
[1768349684183,0.86433945,3327.9,3327.5,0.001]
[1768349684670,3.49829911,3327.9,3327.5,0.001]
[1768349684844,2.63395966,3327.8,3327.5,0.001]
[1768349685249,0.03756348,3327.7,3327.5,0.001]
[1768349686145,3.04266475,3327.7,3327.5,0.001]
[1768349686653,0.399,3328.0,3327.5,2.61949312]
[1768349686857,3.40388047,3328.0,3327.5,0.001]
[1768349687295,6.40876094,3328.0,3327.5,0.001]
[1768349687599,3.40388047,3328.0,3327.5,2.61949312]
[1768349688113,6.40876094,3328.0,3327.5,0.001]
[1768349688247,0.401,3328.8,3327.7,2.61849312]
[1768349688447,3.07251072,3328.8,3327.7,2.61849312]
[1768349688783,3.07251072,3328.8,3327.5,2.88144243]
[1768349690374,2.63395966,3328.6,3327.5,2.88144243]
[1768349690574,2.63395966,3328.4,3327.5,0.001]
[1768349690912,0.399,3328.3,3327.5,2.61949312]
[1768349691203,0.399,3328.3,3327.6,2.61849312]
[1768349691401,6.0083516,3328.7,3327.8,2.61849312]
[1768349691616,0.399,3328.3,3327.8,2.61849312]
[1768349692396,0.399,3328.3,3327.7,5.31498345]
[1768349692397,3.40355118,3328.3,3327.7,5.31498345]
[1768349693273,3.40355118,3328.3,3327.6,2.61849312]
[1768349696306,6.40810236,3328.3,3327.6,2.61849312]
[1768349696680,3.40355118,3328.3,3327.6,2.61849312]
[1768349698102,3.4026086,3328.3,3327.6,3.22127092]
[1768349700003,3.4026086,3328.3,3327.8,0.001]
[1768349700197,0.03755558,3328.4,3327.8,2.61949312]
[1768349700502,0.002,3328.5,3327.8,2.61949312]
[1768349700699,0.399,3328.4,3328.0,2.61849312]
[1768349701104,0.399,3328.4,3327.9,0.26194931]
[1768349702550,2.67151524,3328.4,3327.8,0.001]
[1768349702708,6.0090737,3328.3,3327.8,0.001]
[1768349702897,0.03755783,3328.2,3327.8,0.001]
[1768349703298,3.03295966,3328.1,3327.8,0.001]
[1768349703534,0.30705175,3328.0,3327.8,0.001]
[1768349703908,0.399,3328.1,3327.8,0.001]
[1768349704808,3.00480769,3328.0,3327.8,0.001]
[1768349705344,2.59291215,3327.9,3327.8,0.001]
[1768349705502,3.00480769,3328.0,3327.8,0.001]
[1768349706745,2.59291215,3329.0,3327.8,2.50009168]
[1768349706944,6.26966232,3328.8,3327.8,2.50009168]
[1768349707146,0.4,3328.7,3327.8,2.50009168]
[1768349707847,2.99291215,3328.7,3327.8,2.50009168]
[1768349708221,0.4,3328.7,3327.8,2.50009168]
[1768349708873,6.4101711,3328.8,3327.8,2.50009168]
[1768349709022,0.002,3328.8,3328.0,2.49909168]
[1768349709349,3.00611511,3328.8,3328.0,2.49909168]
[1768349709927,1e-08,3328.8,3328.5,2.49909168]
[1768349710850,0.002,3329.1,3328.8,2.49909168]
[1768349711661,0.002,3329.1,3328.8,2.74900085]
[1768349713326,0.002,3329.4,3328.8,2.74900085]
[1768349714547,0.002,3329.1,3328.8,2.74900085]
[1768349715428,0.002,3329.1,3328.8,0.24990917]
[1768349715634,0.002,3329.4,3328.6,2.49909168]
[1768349716564,0.002,3329.4,3328.7,2.49909168]
[1768349717072,0.002,3329.4,3328.5,2.49909168]
[1768349717222,3.00554418,3329.4,3328.5,2.90209168]
[1768349717665,5.53461491,3329.4,3328.5,2.90209168]
[1768349717829,5.53461491,3329.4,3328.6,0.59064568]
[1768349718238,2.52907073,3329.3,3328.6,0.59064568]
[1768349718458,2.52907073,3329.3,3328.5,2.90209168]
[1768349718459,2.56661615,3329.3,3328.5,0.403]
[1768349718863,2.52907073,3329.3,3328.5,0.403]
[1768349719273,5.53278788,3329.3,3328.4,5.59852845]
[1768349719563,5.53278788,3329.3,3328.4,6.00152845]
[1768349719728,3.00554418,3329.4,3328.4,6.00152845]
[1768349719930,3.00371715,3329.3,3328.5,3.19424539]
[1768349721556,0.002,3329.4,3328.5,3.19424539]
[1768349722825,3.35545397,3329.5,3328.8,2.59409254]
[1768349723564,5.74632514,3329.5,3328.6,2.59409254]
[1768349723746,5.74632514,3329.5,3328.7,0.61985872]
[1768349724059,3.35545397,3329.5,3328.8,2.59409254]
[1768349724432,0.4,3329.5,3328.8,2.59409254]
[1768349724636,6.00546496,3330.3,3329.3,2.59409254]
[1768349724950,6.04299911,3330.3,3329.3,2.59409254]
[1768349726131,6.04299911,3330.3,3329.3,2.99709254]
[1768349726946,3.00465692,3330.4,3329.4,2.59409254]
[1768349727832,6.00731384,3330.4,3329.4,2.59409254]
[1768349728147,6.00731384,3330.4,3329.6,2.59409254]
[1768349728581,0.002,3330.4,3329.8,2.59409254]
[1768349729244,0.002,3330.7,3330.2,2.59409254]
[1768349729654,0.002,3330.8,3330.4,2.59409254]
[1768349729655,3.00430387,3330.8,3330.4,2.59409254]
[1768349729963,0.002,3330.8,3330.4,2.59409254]
[1768349730265,0.002,3330.8,3330.1,0.403]
[1768349730266,6.00659668,3330.8,3330.2,2.59409254]
[1768349730661,0.002,3330.8,3330.2,2.59409254]
[1768349730835,0.002,3330.9,3330.5,2.59409254]
[1768349734192,0.002,3331.2,3330.7,2.59409254]
[1768349734779,0.002,3331.2,3330.3,2.99709254]
[1768349736260,0.002,3331.2,3330.4,2.66355407]
[1768349736494,0.03752176,3331.4,3330.8,2.66355407]
[1768349736772,0.002,3331.5,3330.9,2.66355407]
[1768349737147,0.20893931,3331.9,3330.9,2.66355407]
[1768349737674,3.21025312,3331.9,3330.9,2.66355407]
[1768349737878,3.21025312,3331.9,3331.1,2.66355407]
[1768349738089,0.20893931,3331.9,3331.3,2.66355407]
[1768349739268,0.002,3332.1,3331.5,2.66355407]
[1768349739464,3.00294039,3332.3,3331.6,3.06655407]
[1768349739465,0.002,3332.3,3331.6,3.06655407]
[1768349739703,2.58893884,3333.2,3332.2,2.66355407]
[1768349740007,6.00043939,3333.1,3332.2,2.66355407]
[1768349740208,2.58894109,3333.0,3331.4,2.66355407]
[1768349740413,2.58894109,3333.0,3331.5,0.403]
[1768349740811,2.55143734,3332.8,3331.5,3.06655407]
[1768349741130,2.55143734,3332.6,3331.5,0.403]
[1768349741410,2.55143734,3332.4,3331.5,0.403]
[1768349741719,2.55143734,3332.4,3331.0,2.66355407]
[1768349741919,2.55143734,3332.2,3330.8,0.402]
[1768349742225,2.55143734,3331.8,3329.8,4.32471807]
[1768349742368,2.55143734,3331.6,3329.8,1.661164]
[1768349742564,2.55143734,3331.4,3329.8,1.661164]
[1768349742804,2.55143734,3331.4,3329.6,0.402]
[1768349742805,2.55143734,3331.0,3329.6,0.402]
[1768349742967,2.55143734,3330.8,3329.3,0.402]
[1768349743169,2.55143734,3330.6,3329.3,0.402]
[1768349743382,2.55143734,3330.6,3329.0,2.66355407]
[1768349743586,2.55143734,3330.6,3329.1,3.06555407]
[1768349743791,2.55143734,3330.6,3329.2,2.66355407]
[1768349744514,2.55143734,3330.6,3329.1,0.402]
[1768349744720,0.399,3330.9,3329.1,0.402]
[1768349744721,2.55143734,3330.4,3329.1,0.402]
[1768349744998,2.55143734,3330.2,3328.9,2.66355407]
[1768349746300,2.55143734,3330.2,3328.8,2.66455407]
[1768349746601,0.399,3330.2,3328.9,2.66355407]
[1768349746806,6.00582564,3330.1,3329.0,2.93000948]
[1768349747800,2.95143734,3330.0,3328.8,0.001]
[1768349747978,2.95143734,3330.0,3328.9,0.403]
[1768349748370,2.95143734,3330.0,3328.9,3.06655407]
[1768349748571,6.00582564,3330.1,3328.9,3.06655407]
[1768349748766,0.4,3330.4,3328.9,3.06655407]
[1768349748767,3.00264232,3330.4,3329.2,2.66355407]
[1768349748971,9.00792696,3330.4,3329.3,0.403]
[1768349749274,2.55143734,3330.3,3329.4,0.403]
[1768349749475,2.55143734,3330.3,3328.9,2.66355407]
[1768349749669,6.40528464,3330.4,3329.0,3.06655407]
[1768349749874,3.00264232,3330.4,3329.3,2.66355407]
[1768349750073,3.00264232,3330.4,3329.2,0.001]
[1768349750074,6.00528464,3330.4,3329.5,2.66355407]
[1768349750307,3.00228173,3330.8,3329.6,3.06655407]
[1768349750469,0.03752964,3330.7,3329.6,3.06655407]
[1768349750985,6.00492402,3330.6,3329.6,3.06655407]
[1768349751302,11.55882337,3330.6,3329.7,0.30665541]
[1768349751502,2.55143734,3330.5,3329.7,0.403]
[1768349752488,2.55143734,3330.5,3329.5,0.403]
[1768349752891,2.55143734,3330.3,3329.2,0.001]
[1768349753203,2.55143734,3330.3,3329.3,0.403]
[1768349754386,8.55708264,3330.2,3329.3,0.403]
[1768349754908,2.55143734,3330.1,3329.2,0.001]
[1768349755507,2.58897375,3330.1,3329.2,0.001]
[1768349755908,2.55143734,3330.1,3329.2,0.001]
[1768349756612,2.55143734,3329.9,3329.2,0.001]
[1768349757019,2.588976,3329.9,3329.2,0.001]
[1768349757180,2.55143734,3329.8,3328.8,0.001]
[1768349757785,0.03754091,3329.7,3328.8,0.001]
[1768349757983,2.55143734,3329.6,3328.8,0.001]
[1768349758615,6.00690794,3329.5,3328.8,0.001]
[1768349759181,9.01036191,3329.5,3328.8,0.001]
[1768349759399,11.56179925,3329.5,3328.8,0.001]
[1768349759586,2.55143734,3329.4,3328.8,0.001]
[1768349759785,2.55143734,3329.4,3328.1,0.001]
[1768349759786,2.55143734,3329.4,3328.2,0.403]
[1768349760420,2.95143734,3329.4,3328.1,0.001]
[1768349760621,2.55143734,3329.2,3327.5,0.001]
[1768349760796,2.55143734,3329.0,3327.7,0.403]
[1768349760993,1.75696093,3329.1,3327.5,0.001]
[1768349760994,2.55143734,3328.8,3327.5,0.001]
[1768349763125,2.55143734,3328.6,3327.5,0.001]
[1768349763434,2.55143734,3328.6,3327.8,0.001]
[1768349764319,2.95143734,3328.6,3327.8,0.001]
[1768349765096,1.80576522,3328.4,3327.8,0.001]
[1768349765828,3.00435631,3328.5,3327.8,0.001]
[1768349766323,6.00871262,3328.5,3327.8,0.001]
[1768349766721,1.80576522,3328.4,3327.8,0.001]
[1768349767120,1.80576522,3328.2,3327.8,0.001]
[1768349767424,1.80576522,3328.1,3327.2,0.001]
[1768349769310,1.80576522,3327.9,3327.2,0.001]
[1768349770412,6.00961538,3328.0,3327.2,0.001]
[1768349770614,6.19976744,3328.0,3327.2,0.001]
[1768349770927,8.00553266,3328.0,3327.2,0.001]
[1768349771328,1.80576522,3327.9,3327.2,0.001]
[1768349771531,1.80576522,3327.8,3327.2,0.001]
[1768349772846,0.19015206,3328.0,3327.2,0.001]
[1768349773351,3.19496446,3328.0,3327.2,0.001]
[1768349773547,0.19015206,3328.0,3327.2,0.001]
[1768349773921,3.19498827,3328.0,3327.2,0.001]
[1768349774121,8.0055897,3328.0,3327.3,0.30066205]
[1768349774349,1.80576522,3327.9,3327.2,0.001]
[1768349775157,1.80576522,3327.9,3327.5,0.001]
[1768349775534,3.00498828,3327.8,3327.5,0.001]
[1768349775730,6.00997656,3327.8,3327.5,0.001]
[1768349776253,1.80576522,3327.7,3327.5,0.001]
[1768349776618,1.8433287,3327.7,3327.5,0.001]
[1768349777022,1.80576522,3327.6,3327.5,0.001]
[1768349777536,1.53394554,3327.4,3327.2,0.001]
[1768349777764,1.53394554,3327.4,3326.0,0.73420516]
[1768349777924,1.53394554,3327.4,3326.4,3.40925213]
[1768349778320,1.53394554,3327.4,3326.0,0.73420516]
[1768349778626,1.53394554,3327.4,3326.1,0.403]
[1768349779026,1.53394554,3327.4,3326.2,3.40938529]
[1768349779248,1.53394554,3327.4,3326.3,0.34093853]
[1768349779650,1.53394554,3327.2,3325.9,0.403]
[1768349779892,1.53394554,3327.2,3325.9,1.09007361]
[1768349780062,6.01087968,3327.3,3326.0,0.68707361]
[1768349780470,7.54482522,3327.3,3326.0,0.68707361]
[1768349780761,1.53394554,3327.2,3326.0,0.68707361]
[1768349781273,6.01087968,3327.3,3326.0,0.68707361]
[1768349781432,10.55026506,3327.3,3326.0,0.68707361]
[1768349782054,1.53394554,3327.2,3326.1,0.40967464]
[1768349783665,1.53394554,3327.2,3325.9,0.403]
[1768349784456,1.53394554,3327.0,3325.8,0.001]
[1768349786646,1.53394554,3326.8,3325.8,0.001]
[1768349787466,1.53394554,3326.6,3325.8,0.001]
[1768349787669,0.4,3326.7,3325.8,0.001]
[1768349787670,1.53394554,3326.4,3325.8,0.001]
[1768349787972,1.93394554,3326.3,3326.2,0.001]
[1768349788185,1.93394554,3326.3,3325.8,0.001]
[1768349788391,1.53394554,3326.2,3325.8,0.001]
[1768349788682,6.0130483,3326.1,3325.8,0.001]
[1768349788855,3.00652415,3326.1,3325.8,0.001]
[1768349789170,6.0130483,3326.1,3325.8,0.001]
[1768349789772,1.53394554,3326.0,3325.8,0.001]
[1768349790145,3.00645228,3326.2,3325.8,0.001]
[1768349790468,6.41277932,3326.3,3325.8,0.001]
[1768349790769,1.53394554,3326.2,3325.8,0.001]
[1768349790972,3.00628179,3326.4,3325.8,0.001]
[1768349791768,4.54014932,3326.5,3325.8,0.001]
[1768349792070,7.5463531,3326.5,3325.8,0.001]
[1768349792273,1.53394554,3326.4,3325.8,0.001]
[1768349792471,1.53394554,3326.2,3325.8,0.001]
[1768349792841,3.00634338,3326.3,3325.8,0.001]
[1768349793473,1.53394554,3326.2,3325.8,0.001]
[1768349794590,7.54699384,3326.1,3325.8,0.001]